fUSD/lending_fUSD_20250720
["ID","MTS","AMOUNT","RATE_DAILY","PERIOD"]
[373446245,1753013456580,-229.54674309,0.00019287,2]
[373446246,1753013456589,-480.0,0.00019287,2]
[373446247,1753013456599,-477.66,0.00019287,2]
[373446248,1753013456608,-480.0,0.00019287,2]
[373446249,1753013456618,-440.0,0.00019287,2]
[373446250,1753013456627,-480.0,0.00019287,2]
[373446251,1753013456636,-480.0,0.00019287,2]
[373446252,1753013456646,-770.75,0.00019287,2]
[373446253,1753013456655,-480.0,0.00019287,2]
[373446254,1753013456664,-480.0,0.00019287,2]
[373446255,1753013456674,-480.0,0.00019287,2]
[373446256,1753013456684,-480.0,0.00019287,2]
[373446257,1753013456694,-480.0,0.00019287,2]
[373446258,1753013456704,-480.0,0.00019287,2]
[373446259,1753013456713,-690.41,0.00019287,2]
[373446260,1753013456724,-480.0,0.00019287,2]
[373446261,1753013456733,-480.0,0.00019287,2]
[373446262,1753013456742,-480.0,0.00019287,2]
[373446263,1753013456752,-480.0,0.00019287,2]
[373446264,1753013456761,-480.0,0.00019287,2]
[373446265,1753013456771,-490.06,0.00019287,2]
[373446266,1753013456780,-480.0,0.00019287,2]
[373446267,1753013456789,-521.99407836,0.00019287,2]
[373446268,1753013456799,-480.0,0.00019287,2]
[373446269,1753013456809,-711.83,0.00019287,2]
[373446270,1753013456818,-480.0,0.00019287,2]
[373446271,1753013456828,-665.57,0.00019287,2]
[373446272,1753013456838,-442.71531961,0.00019287,2]
[373446273,1753013456848,-480.0,0.00019287,2]
[373446274,1753013456857,-480.0,0.00019287,2]
[373446275,1753013456867,-480.0,0.00019287,2]
[373446276,1753013456876,-440.0,0.00019287,2]
[373446277,1753013456886,-480.0,0.00019287,2]
[373446278,1753013456896,-480.0,0.00019287,2]
[373446279,1753013456905,-480.0,0.00019287,2]
[373446280,1753013456915,-559.66,0.00019287,2]
[373446281,1753013456925,-480.0,0.00019287,2]
[373446282,1753013456935,-214.58,0.00019287,2]
[373446283,1753013456944,-480.0,0.00019287,2]
[373446284,1753013456954,-1059.97,0.00019287,2]
[373446285,1753013456963,-480.0,0.00019287,2]
[373446286,1753013456973,-289.47773153,0.00019287,2]
[373446287,1753013456982,-480.0,0.00019287,2]
[373446288,1753013456992,-429.76343338,0.00019287,2]
[373446289,1753013457002,-480.0,0.00019287,2]
[373446290,1753013457011,-480.0,0.00019287,2]
[373446291,1753013457021,-480.0,0.00019287,2]
[373446292,1753013457031,-480.0,0.00019287,2]
[373446293,1753013457040,-548.72880855,0.00019287,2]
[373446294,1753013457050,-537.05,0.00019287,2]
[373446295,1753013457060,-480.0,0.00019287,2]
[373446296,1753013457069,-480.0,0.00019287,2]
[373446297,1753013457080,-480.0,0.00019287,2]
[373446298,1753013457090,-480.0,0.00019287,2]
[373446299,1753013457100,-480.0,0.00019287,2]
[373446300,1753013457109,-480.0,0.00019287,2]
[373446301,1753013457119,-480.0,0.00019287,2]
[373446302,1753013457129,-480.0,0.00019287,2]
[373446303,1753013457138,-480.0,0.00019287,2]
[373446304,1753013457148,-527.25,0.00019287,2]
[373446305,1753013457157,-480.0,0.00019287,2]
[373446306,1753013457167,-219.88,0.00019287,2]
[373446307,1753013457176,-480.0,0.00019287,2]
[373446308,1753013457186,-480.0,0.00019287,2]
[373446309,1753013457195,-1151.96,0.00019287,2]
[373446310,1753013457204,-480.0,0.00019287,2]
[373446311,1753013457215,-286.07774979,0.00019287,2]
[373446312,1753013457227,-480.0,0.00019287,2]
[373446313,1753013457236,-480.0,0.00019287,2]
[373446314,1753013457246,-480.0,0.00019287,2]
[373446315,1753013457257,-480.0,0.00019287,2]
[373446316,1753013457266,-480.0,0.00019287,2]
[373446317,1753013457275,-480.0,0.00019287,2]
[373446318,1753013457285,-480.0,0.00019287,2]
[373446319,1753013457296,-917.78,0.00019287,2]
[373446320,1753013457306,-480.0,0.00019287,2]
[373446321,1753013457315,-480.0,0.00019287,2]
[373446322,1753013457325,-480.0,0.00019287,2]
[373446323,1753013457334,-444.59,0.00019287,2]
[373446324,1753013457344,-156.0,0.00019287,2]
[373446325,1753013457354,-480.0,0.00019287,2]
[373446326,1753013457363,-688.83,0.00019287,2]
[373446327,1753013457372,-246.78,0.00019287,2]
[373446328,1753013457382,-480.0,0.00019287,2]
[373446329,1753013457391,-480.0,0.00019287,2]
[373446330,1753013457401,-480.0,0.00019287,2]
[373446331,1753013457411,-1080.81,0.00019287,2]
[373446332,1753013457420,-480.0,0.00019287,2]
[373446333,1753013457429,-1028.71,0.00019287,2]
[373446334,1753013457439,-440.0,0.00019287,2]
[373446335,1753013457448,-899.52,0.00019287,2]
[373446336,1753013457457,-480.0,0.00019287,2]
[373446337,1753013457467,-480.0,0.00019287,2]
[373446338,1753013457477,-480.0,0.00019287,2]
[373446339,1753013457486,-480.0,0.00019287,2]
[373446340,1753013457496,-480.0,0.00019287,2]
[373446341,1753013457505,-480.0,0.00019287,2]
[373446342,1753013457514,-366.21526229,0.00019287,2]
[373446343,1753013457522,-263.7061418,0.00019287,2]
[373446344,1753013457531,-480.0,0.00019287,2]
[373446345,1753013457540,-480.0,0.00019287,2]
[373446346,1753013457550,-480.0,0.00019287,2]
[373446347,1753013457559,-480.0,0.00019287,2]
[373446348,1753013457570,-354.62880062,0.00019287,2]
[373446349,1753013457580,-480.0,0.00019287,2]
[373446350,1753013457589,-429.0610894,0.00019287,2]
[373446351,1753013457599,-480.0,0.00019287,2]
[373446352,1753013457608,-480.0,0.00019287,2]
[373446353,1753013457617,-828.24,0.00019287,2]
[373446354,1753013457626,-1143.47,0.00019287,2]
[373446355,1753013457636,-707.39,0.00019287,2]
[373446356,1753013457645,-440.0,0.00019287,2]
[373446357,1753013457654,-484.93533223,0.00019287,2]
[373446358,1753013457664,-480.0,0.00019287,2]
[373446359,1753013457673,-480.0,0.00019287,2]
[373446360,1753013457682,-480.0,0.00019287,2]
[373446361,1753013457692,-568.93794615,0.00019287,2]
[373446362,1753013457702,-480.0,0.00019287,2]
[373446363,1753013457711,-672.05,0.00019287,2]
[373446364,1753013457720,-268.60120118,0.00019287,2]
[373446365,1753013457729,-967.39,0.00019287,2]
[373446366,1753013457739,-562.11,0.00019287,2]
[373446367,1753013457748,-400.0,0.00019287,2]
[373446368,1753013457757,-480.0,0.00019287,2]
[373446369,1753013457767,-497.81,0.00019287,2]
[373446370,1753013457776,-480.0,0.00019287,2]
[373446371,1753013457786,-480.0,0.00019287,2]
[373446372,1753013457795,-480.0,0.00019287,2]
[373446373,1753013457804,-440.0,0.00019287,2]
[373446374,1753013457813,-659.85,0.00019287,2]
[373446375,1753013457823,-480.0,0.00019287,2]
[373446376,1753013457832,-480.0,0.00019287,2]
[373446377,1753013457842,-480.0,0.00019287,2]
[373446378,1753013457851,-480.0,0.00019287,2]
[373446379,1753013457861,-480.0,0.00019287,2]
[373446380,1753013457870,-1469.92,0.00019287,2]
[373446381,1753013457879,-480.0,0.00019287,2]
[373446382,1753013457889,-480.0,0.00019287,2]
[373446383,1753013457898,-480.0,0.00019287,2]
[373446384,1753013457907,-1978.4,0.00019287,2]
[373446385,1753013457916,-480.0,0.00019287,2]
[373446386,1753013457927,-480.0,0.00019287,2]
[373446387,1753013457936,-480.0,0.00019287,2]
[373446388,1753013457945,-433.43808502,0.00019287,2]
[373446389,1753013457954,-480.0,0.00019287,2]
[373446390,1753013457963,-480.0,0.00019287,2]
[373446391,1753013457973,-480.0,0.00019287,2]
[373446392,1753013457982,-480.0,0.00019287,2]
[373446393,1753013457992,-480.0,0.00019287,2]
[373446394,1753013458002,-420.0,0.00019287,2]
[373446395,1753013458013,-480.0,0.00019287,2]
[373446396,1753013458023,-420.0,0.00019287,2]
[373446397,1753013458033,-773.9,0.00019287,2]
[373446398,1753013458045,-420.0,0.00019287,2]
[373446399,1753013458056,-480.0,0.00019287,2]
[373446400,1753013458067,-539.88,0.00019287,2]
[373446401,1753013458081,-480.0,0.00019287,2]
[373446402,1753013458092,-480.0,0.00019287,2]
[373446403,1753013458103,-480.0,0.00019287,2]
[373446404,1753013458114,-480.0,0.00019287,2]
[373446405,1753013458125,-743.85,0.00019287,2]
[373446406,1753013458136,-480.0,0.00019287,2]
[373446407,1753013458147,-480.0,0.00019287,2]
[373446408,1753013458158,-420.0,0.00019287,2]
[373446409,1753013458169,-480.0,0.00019287,2]
[373446410,1753013458182,-480.0,0.00019287,2]
[373446411,1753013458193,-1628.16,0.00019287,2]
[373446412,1753013458203,-480.0,0.00019287,2]
[373446413,1753013458215,-480.0,0.00019287,2]
[373446414,1753013458227,-480.0,0.00019287,2]
[373446415,1753013458238,-948.39,0.00019287,2]
[373446416,1753013458248,-420.0,0.00019287,2]
[373446417,1753013458260,-480.0,0.00019287,2]
[373446418,1753013458269,-1034.04,0.00019287,2]
[373446419,1753013458280,-480.0,0.00019287,2]
[373446420,1753013458291,-480.0,0.00019287,2]
[373446421,1753013458301,-480.0,0.00019287,2]
[373446422,1753013458313,-480.0,0.00019287,2]
[373446423,1753013458324,-480.0,0.00019287,2]
[373446424,1753013458333,-480.0,0.00019287,2]
[373446425,1753013458343,-420.0,0.00019287,2]
[373446426,1753013458353,-480.0,0.00019287,2]
[373446427,1753013458363,-480.0,0.00019287,2]
[373446428,1753013458372,-151.0,0.00019287,2]
[373446429,1753013458382,-480.0,0.00019287,2]
[373446430,1753013458391,-480.0,0.00019287,2]
[373446431,1753013458401,-480.0,0.00019287,2]
[373446432,1753013458474,-784.15,0.00019287,2]
[373446433,1753013458484,-480.0,0.00019287,2]
[373446434,1753013458493,-480.0,0.00019287,2]
[373446435,1753013458502,-151.0,0.00019287,2]
[373446436,1753013458512,-480.0,0.00019287,2]
[373446437,1753013458522,-420.0,0.00019287,2]
[373446438,1753013458533,-508.41,0.00019287,2]
[373446439,1753013458543,-420.0,0.00019287,2]
[373446440,1753013458551,-577.83,0.00019287,2]
[373446441,1753013458561,-480.0,0.00019287,2]
[373446442,1753013458570,-420.0,0.00019287,2]
[373446443,1753013458581,-151.0,0.00019287,2]
[373446444,1753013458590,-480.0,0.00019287,2]
[373446445,1753013458599,-480.0,0.00019287,2]
[373446446,1753013458609,-480.0,0.00019287,2]
[373446447,1753013458618,-552.83497245,0.00019287,2]
[373446448,1753013458628,-480.0,0.00019287,2]
[373446449,1753013458638,-772.81,0.00019287,2]
[373446450,1753013458648,-480.0,0.00019287,2]
[373446451,1753013458658,-480.0,0.00019287,2]
[373446452,1753013458669,-480.0,0.00019287,2]
[373446453,1753013458679,-480.0,0.00019287,2]
[373446454,1753013458688,-480.0,0.00019287,2]
[373446455,1753013458697,-480.0,0.00019287,2]
[373446456,1753013458707,-480.0,0.00019287,2]
[373446457,1753013458718,-420.0,0.00019287,2]
[373446458,1753013458729,-480.0,0.00019287,2]
[373446459,1753013458738,-205.86039389,0.00019287,2]
[373446460,1753013458748,-533.58,0.00019287,2]
[373446461,1753013458758,-480.0,0.00019287,2]
[373446462,1753013458767,-480.0,0.00019287,2]
[373446463,1753013458776,-480.0,0.00019287,2]
[373446464,1753013458786,-830.25,0.00019287,2]
[373446465,1753013458795,-480.0,0.00019287,2]
[373446466,1753013458804,-680.76,0.00019287,2]
[373446467,1753013458815,-420.0,0.00019287,2]
[373446468,1753013458825,-480.0,0.00019287,2]
[373446469,1753013458834,-420.0,0.00019287,2]
[373446470,1753013458843,-480.0,0.00019287,2]
[373446471,1753013458853,-473.1477717,0.00019287,2]
[373446472,1753013458863,-151.0,0.00019287,2]
[373446473,1753013458874,-480.0,0.00019287,2]
[373446474,1753013458884,-480.0,0.00019287,2]
[373446475,1753013458894,-497.77,0.00019287,2]
[373446476,1753013458903,-480.0,0.00019287,2]
[373446477,1753013458913,-480.0,0.00019287,2]
[373446478,1753013458924,-480.0,0.00019287,2]
[373446479,1753013458935,-480.0,0.00019287,2]
[373446480,1753013458945,-420.0,0.00019287,2]
[373446481,1753013458956,-480.0,0.00019287,2]
[373446482,1753013458966,-480.0,0.00019287,2]
[373446483,1753013458976,-480.0,0.00019287,2]
[373446484,1753013458985,-889.11,0.00019287,2]
[373446485,1753013458994,-336.15550873,0.00019287,2]
[373446486,1753013459005,-480.0,0.00019287,2]
[373446487,1753013459014,-480.0,0.00019287,2]
[373446488,1753013459023,-480.0,0.00019287,2]
[373446489,1753013459032,-480.0,0.00019287,2]
[373446490,1753013459041,-480.0,0.00019287,2]
[373446491,1753013459052,-420.0,0.00019287,2]
[373446492,1753013459062,-480.0,0.00019287,2]
[373446493,1753013459071,-828.45,0.00019287,2]
[373446494,1753013459082,-480.0,0.00019287,2]
[373446495,1753013459091,-609.19,0.00019287,2]
[373446496,1753013459101,-480.0,0.00019287,2]
[373446497,1753013459111,-703.8,0.00019287,2]
[373446498,1753013459121,-420.0,0.00019287,2]
[373446499,1753013459131,-480.0,0.00019287,2]
[373446500,1753013459140,-420.0,0.00019287,2]
[373446501,1753013459149,-480.0,0.00019287,2]
[373446502,1753013459159,-480.0,0.00019287,2]
[373446503,1753013459168,-480.0,0.00019287,2]
[373446504,1753013459178,-480.0,0.00019287,2]
[373446505,1753013459188,-480.0,0.00019287,2]
[373446506,1753013459198,-480.0,0.00019287,2]
[373446507,1753013459207,-480.0,0.00019287,2]
[373446508,1753013459217,-480.0,0.00019287,2]
[373446509,1753013459228,-480.0,0.00019287,2]
[373446510,1753013459237,-249.699544,0.00019287,2]
[373446511,1753013459246,-480.0,0.00019287,2]
[373446512,1753013459255,-480.0,0.00019287,2]
[373446513,1753013459265,-675.3,0.00019287,2]
[373446514,1753013459275,-249.699544,0.00019287,2]
[373446515,1753013459285,-480.0,0.00019287,2]
[373446516,1753013459294,-586.98,0.00019287,2]
[373446517,1753013459304,-480.0,0.00019287,2]
[373446518,1753013459314,-480.0,0.00019287,2]
[373446519,1753013459323,-420.0,0.00019287,2]
[373446520,1753013459334,-1902.48,0.00019287,2]
[373446521,1753013459345,-979.4,0.00019287,2]
[373446522,1753013459354,-480.0,0.00019287,2]
[373446523,1753013459364,-480.0,0.00019287,2]
[373446524,1753013459373,-151.0,0.00019287,2]
[373446525,1753013459383,-892.2,0.00019287,2]
[373446526,1753013459392,-994.27,0.00019287,2]
[373446527,1753013459401,-480.0,0.00019287,2]
[373446528,1753013459411,-587.05,0.00019287,2]
[373446529,1753013459428,-480.0,0.00019287,2]
[373446530,1753013459437,-986.19,0.00019287,2]
[373446531,1753013459447,-943.03,0.00019287,2]
[373446532,1753013459457,-1406.38,0.00019287,2]
[373446533,1753013459467,-1047.81,0.00019287,2]
[373446534,1753013459475,-545.89,0.00019287,2]
[373446535,1753013459485,-152.85567056,0.00019287,2]
[373446536,1753013459496,-480.0,0.00019287,2]
[373446537,1753013459505,-480.0,0.00019287,2]
[373446538,1753013459514,-343.22064241,0.00019287,2]
[373446539,1753013459524,-480.0,0.00019287,2]
[373446540,1753013459533,-480.0,0.00019287,2]
[373446541,1753013459542,-480.0,0.00019287,2]
[373446542,1753013459551,-685.54,0.00019287,2]
[373446543,1753013459560,-151.0,0.00019287,2]
[373446544,1753013459570,-480.0,0.00019287,2]
[373446545,1753013459579,-480.0,0.00019287,2]
[373446546,1753013459588,-527.06,0.00019287,2]
[373446547,1753013459597,-480.0,0.00019287,2]
[373446548,1753013459606,-1515.730714,0.00019287,2]
[373446549,1753013459615,-480.0,0.00019287,2]
[373446550,1753013459624,-480.0,0.00019287,2]
[373446551,1753013459633,-480.0,0.00019287,2]
[373446552,1753013459643,-151.0,0.00019287,2]
[373446553,1753013459652,-480.0,0.00019287,2]
[373446554,1753013459661,-480.0,0.00019287,2]
[373446555,1753013459670,-151.0,0.00019287,2]
[373446556,1753013459679,-480.0,0.00019287,2]
[373446557,1753013459688,-1778.936356,0.00019287,2]
[373446558,1753013459697,-480.0,0.00019287,2]
[373446559,1753013459706,-1739.85,0.00019287,2]
[373446560,1753013459714,-480.0,0.00019287,2]
[373446561,1753013459723,-480.0,0.00019287,2]
[373446562,1753013459732,-1833.238425,0.00019287,2]
[373446563,1753013459741,-4173.55,0.00019287,2]
[373446564,1753013459750,-480.0,0.00019287,2]
[373446565,1753013459760,-480.0,0.00019287,2]
[373446566,1753013459769,-420.0,0.00019287,2]
[373446567,1753013459780,-420.0,0.00019287,2]
[373446568,1753013459789,-151.0,0.00019287,2]
[373446569,1753013459798,-480.0,0.00019287,2]
[373446570,1753013459807,-480.0,0.00019287,2]
[373446571,1753013459816,-480.0,0.00019287,2]
[373446572,1753013459825,-480.0,0.00019287,2]
[373446573,1753013459835,-420.0,0.00019287,2]
[373446574,1753013459844,-480.0,0.00019287,2]
[373446575,1753013459860,-480.0,0.00019287,2]
[373446576,1753013459871,-1625.1,0.00019287,2]
[373446577,1753013459880,-480.0,0.00019287,2]
[373446578,1753013459889,-480.0,0.00019287,2]
[373446579,1753013459898,-480.0,0.00019287,2]
[373446580,1753013459909,-480.0,0.00019287,2]
[373446581,1753013459921,-480.0,0.00019287,2]
[373446582,1753013459931,-480.0,0.00019287,2]
[373446583,1753013459940,-480.0,0.00019287,2]
[373446584,1753013459950,-420.0,0.00019287,2]
[373446585,1753013459959,-420.0,0.00019287,2]
[373446586,1753013459968,-824.79,0.00019287,2]
[373446587,1753013459977,-480.0,0.00019287,2]
[373446588,1753013459987,-634.94,0.00019287,2]
[373446589,1753013459996,-566.57,0.00019287,2]
[373446590,1753013460006,-4020.73,0.00019287,2]
[373446591,1753013460016,-448.42,0.00019287,2]
[373446592,1753013460028,-848.58,0.00019287,2]
[373446593,1753013460038,-677.06,0.00019287,2]
[373446594,1753013460049,-480.52,0.00019287,2]
[373446595,1753013460058,-480.0,0.00019287,2]
[373446596,1753013460068,-480.0,0.00019287,2]
[373446597,1753013460079,-480.0,0.00019287,2]
[373446598,1753013460088,-151.0,0.00019287,2]
[373446599,1753013460098,-420.0,0.00019287,2]
[373446600,1753013460107,-480.0,0.00019287,2]
[373446601,1753013460117,-480.0,0.00019287,2]
[373446602,1753013460126,-480.0,0.00019287,2]
[373446603,1753013460136,-480.0,0.00019287,2]
[373446604,1753013460145,-480.0,0.00019287,2]
[373446605,1753013460155,-184.848733,0.00019287,2]
[373446606,1753013460164,-480.0,0.00019287,2]
[373446607,1753013460173,-480.0,0.00019287,2]
[373446608,1753013460183,-420.0,0.00019287,2]
[373446609,1753013460192,-526.51150772,0.00019287,2]
[373446610,1753013460201,-420.0,0.00019287,2]
[373446611,1753013460214,-480.0,0.00019287,2]
[373446612,1753013460227,-606.17468341,0.00019287,2]
[373446613,1753013460236,-480.0,0.00019287,2]
[373446614,1753013460245,-184.848733,0.00019287,2]
[373446615,1753013460255,-420.0,0.00019287,2]
[373446616,1753013460266,-480.0,0.00019287,2]
[373446617,1753013460275,-480.0,0.00019287,2]
[373446618,1753013460285,-480.0,0.00019287,2]
[373446619,1753013460295,-499.48,0.00019287,2]
[373446620,1753013460307,-480.0,0.00019287,2]
[373446621,1753013460316,-480.0,0.00019287,2]
[373446622,1753013460325,-736.11,0.00019287,2]
[373446623,1753013460336,-480.0,0.00019287,2]
[373446624,1753013460345,-480.0,0.00019287,2]
[373446625,1753013460355,-1000.0,0.00019287,2]
[373446626,1753013460364,-151.0,0.00019287,2]
[373446627,1753013460373,-1960.09,0.00019287,2]
[373446628,1753013460383,-464.88695897,0.00019287,2]
[373446629,1753013460392,-480.0,0.00019287,2]
[373446630,1753013460403,-1492.33,0.00019287,2]
[373446631,1753013460412,-731.9,0.00019287,2]
[373446632,1753013460421,-420.0,0.00019287,2]
[373446633,1753013460430,-420.0,0.00019287,2]
[373446634,1753013460440,-1670.752502,0.00019287,2]
[373446635,1753013460449,-480.0,0.00019287,2]
[373446636,1753013460458,-480.0,0.00019287,2]
[373446637,1753013460467,-480.0,0.00019287,2]
[373446638,1753013460477,-151.0,0.00019287,2]
[373446639,1753013460486,-480.0,0.00019287,2]
[373446640,1753013460496,-420.0,0.00019287,2]
[373446641,1753013460505,-480.0,0.00019287,2]
[373446642,1753013460514,-1670.752502,0.00019287,2]
[373446643,1753013460524,-151.0,0.00019287,2]
[373446644,1753013460533,-480.0,0.00019287,2]
[373446645,1753013460543,-480.0,0.00019287,2]
[373446646,1753013460552,-725.75,0.00019287,2]
[373446647,1753013460561,-480.0,0.00019287,2]
[373446648,1753013460570,-420.0,0.00019287,2]
[373446649,1753013460581,-420.0,0.00019287,2]
[373446650,1753013460591,-1098.6,0.00019287,2]
[373446651,1753013460600,-772.64,0.00019287,2]
[373446652,1753013460610,-495.24,0.00019287,2]
[373446653,1753013460621,-506.65,0.00019287,2]
[373446654,1753013460631,-480.0,0.00019287,2]
[373446655,1753013460642,-480.0,0.00019287,2]
[373446656,1753013460652,-1030.7,0.00019287,2]
[373446657,1753013460662,-1312.22,0.00019287,2]
[373446658,1753013460672,-420.0,0.00019287,2]
[373446659,1753013460682,-1191.66,0.00019287,2]
[373446660,1753013460693,-2774.45,0.00019287,2]
[373446661,1753013460703,-480.0,0.00019287,2]
[373446662,1753013460714,-480.0,0.00019287,2]
[373446663,1753013460724,-480.0,0.00019287,2]
[373446664,1753013460734,-480.0,0.00019287,2]
[373446665,1753013460744,-480.0,0.00019287,2]
[373446666,1753013460754,-480.0,0.00019287,2]
[373446667,1753013460765,-256.25260016,0.00019287,2]
[373446668,1753013460775,-480.0,0.00019287,2]
[373446669,1753013460784,-866.31,0.00019287,2]
[373446670,1753013460794,-480.0,0.00019287,2]
[373446671,1753013460803,-420.0,0.00019287,2]
[373446672,1753013460813,-480.0,0.00019287,2]
[373446673,1753013460823,-480.56,0.00019287,2]
[373446674,1753013460833,-480.0,0.00019287,2]
[373446675,1753013460843,-480.0,0.00019287,2]
[373446676,1753013460852,-151.0,0.00019287,2]
[373446677,1753013460863,-3797.56,0.00019287,2]
[373446678,1753013460873,-420.0,0.00019287,2]
[373446679,1753013460884,-151.0,0.00019287,2]
[373446680,1753013460893,-480.0,0.00019287,2]
[373446681,1753013460903,-464.49,0.00019287,2]
[373446682,1753013460913,-151.0,0.00019287,2]
[373446683,1753013460923,-480.0,0.00019287,2]
[373446684,1753013460933,-480.0,0.00019287,2]
[373446685,1753013460943,-480.0,0.00019287,2]
[373446686,1753013460954,-151.0,0.00019287,2]
[373446687,1753013460964,-480.0,0.00019287,2]
[373446688,1753013460974,-1643.95,0.00019287,2]
[373446689,1753013460985,-480.0,0.00019287,2]
[373446690,1753013460994,-880.77,0.00019287,2]
[373446691,1753013461005,-480.0,0.00019287,2]
[373446692,1753013461014,-480.0,0.00019287,2]
[373446693,1753013461024,-420.0,0.00019287,2]
[373446694,1753013461034,-480.0,0.00019287,2]
[373446695,1753013461044,-519.95,0.00019287,2]
[373446696,1753013461056,-480.0,0.00019287,2]
[373446697,1753013461065,-781.18,0.00019287,2]
[373446698,1753013461075,-480.0,0.00019287,2]
[373446699,1753013461086,-650.82,0.00019287,2]
[373446700,1753013461096,-1228.87,0.00019287,2]
[373446701,1753013461110,-480.0,0.00019287,2]
[373446702,1753013461120,-480.0,0.00019287,2]
[373446703,1753013461130,-1321.79,0.00019287,2]
[373446704,1753013461140,-480.0,0.00019287,2]
[373446705,1753013461149,-420.0,0.00019287,2]
[373446706,1753013461159,-420.0,0.00019287,2]
[373446707,1753013461169,-480.0,0.00019287,2]
[373446708,1753013461179,-2085.45,0.00019287,2]
[373446709,1753013461189,-480.0,0.00019287,2]
[373446710,1753013461198,-3694.26,0.00019287,2]
[373446711,1753013461208,-480.0,0.00019287,2]
[373446712,1753013461219,-819.47,0.00019287,2]
[373446713,1753013461232,-480.0,0.00019287,2]
[373446714,1753013461242,-480.0,0.00019287,2]
[373446715,1753013461251,-480.0,0.00019287,2]
[373446716,1753013461263,-480.0,0.00019287,2]
[373446717,1753013461273,-480.0,0.00019287,2]
[373446718,1753013461282,-480.0,0.00019287,2]
[373446719,1753013461293,-480.0,0.00019287,2]
[373446720,1753013461304,-480.0,0.00019287,2]
[373446721,1753013461314,-5917.35,0.00019287,2]
[373446722,1753013461323,-423.59561988,0.00019287,2]
[373446723,1753013461334,-585.66,0.00019287,2]
[373446724,1753013461345,-480.0,0.00019287,2]
[373446725,1753013461354,-1898.44,0.00019287,2]
[373446726,1753013461364,-456.50364969,0.00019287,2]
[373446727,1753013461373,-480.0,0.00019287,2]
[373446728,1753013461383,-480.0,0.00019287,2]
[373446729,1753013461393,-809.54,0.00019287,2]
[373446730,1753013461403,-480.0,0.00019287,2]
[373446731,1753013461412,-420.0,0.00019287,2]
[373446732,1753013461422,-480.0,0.00019287,2]
[373446733,1753013461432,-1485.49,0.00019287,2]
[373446734,1753013461442,-420.0,0.00019287,2]
[373446735,1753013461452,-818.6,0.00019287,2]
[373446736,1753013461461,-420.0,0.00019287,2]
[373446737,1753013461471,-480.0,0.00019287,2]
[373446738,1753013461481,-480.0,0.00019287,2]
[373446739,1753013461490,-480.0,0.00019287,2]
[373446740,1753013461500,-851.55,0.00019287,2]
[373446741,1753013461510,-578.5,0.00019287,2]
[373446742,1753013461520,-480.0,0.00019287,2]
[373446743,1753013461530,-420.0,0.00019287,2]
[373446744,1753013461539,-4649.23,0.00019287,2]